[Event "*** Titled Tuesday 3|2 Blitz"]
[Site "Chess.com"]
[Date "2016.07.05"]
[Round "1"]
[White "Quiet_Desperation"]
[Black "Blitzstream"]
[Result "0-1"]
[WhiteElo "2201"]
[BlackElo "2512"]
[TimeControl "180+2"]
[EndTime "11:03:45 PDT"]
[Termination "Blitzstream won by resignation"]

1. e4 {[%clk 0:03:01.9]} 1... d5 {[%clk 0:03:00.6]} 2. exd5 {[%clk 0:02:59.3]}
2... Qxd5 {[%clk 0:03:02.5]} 3. d4 {[%clk 0:03:00.4]} 3... Nc6 {[%clk
0:03:02.9]} 4. Nf3 {[%clk 0:03:01.1]} 4... Bg4 {[%clk 0:03:03.7]} 5. Be2 {[%clk
0:03:01.7]} 5... O-O-O {[%clk 0:03:04.5]} 6. c4 {[%clk 0:02:52.2]} 6... Qd7
{[%clk 0:03:03.5]} 7. d5 {[%clk 0:02:50.1]} 7... Bxf3 {[%clk 0:03:04.3]} 8. Bxf3
{[%clk 0:02:50.9]} 8... Ne5 {[%clk 0:03:05.9]} 9. Be2 {[%clk 0:02:50.3]} 9... e6
{[%clk 0:03:07]} 10. Nc3 {[%clk 0:02:47.8]} 10... Nf6 {[%clk 0:03:06.7]} 11. Bg5
{[%clk 0:02:48]} 11... exd5 {[%clk 0:02:46.2]} 12. Nxd5 {[%clk 0:02:38.2]} 12...
Qf5 {[%clk 0:02:41.8]} 13. Bxf6 {[%clk 0:02:24]} 13... gxf6 {[%clk 0:02:38.6]}
14. Qa4 {[%clk 0:02:22.6]} 14... Nd3+ {[%clk 0:02:16.2]} 15. Bxd3 {[%clk
0:01:47.4]} 15... Qxd3 {[%clk 0:02:16.7]} 16. Rd1 {[%clk 0:01:44.4]} 16... Bb4+
{[%clk 0:02:05.6]} 17. Qxb4 {[%clk 0:01:37.4]} 17... Rhe8+ {[%clk 0:02:04.5]}
18. Ne7+ {[%clk 0:01:38.1]} 18... Rxe7+ {[%clk 0:02:04.9]} 0-1

[Event "*** Titled Tuesday 3|2 Blitz"]
[Site "Chess.com"]
[Date "2016.07.05"]
[Round "1"]
[White "EltajSafarli"]
[Black "Usurpov"]
[Result "1-0"]
[WhiteElo "2713"]
[BlackElo "2345"]
[TimeControl "180+2"]
[EndTime "11:04:01 PDT"]
[Termination "EltajSafarli won by resignation"]

1. e4 {[%clk 0:03:01.9]} 1... c5 {[%clk 0:03:00.5]} 2. Nf3 {[%clk 0:03:01.9]}
2... e6 {[%clk 0:03:00.3]} 3. d4 {[%clk 0:03:02.7]} 3... cxd4 {[%clk 0:03:01.2]}
4. Nxd4 {[%clk 0:03:04.6]} 4... Nf6 {[%clk 0:03:02.5]} 5. Nc3 {[%clk 0:03:05.8]}
5... Nc6 {[%clk 0:03:03.7]} 6. Nxc6 {[%clk 0:03:05.3]} 6... bxc6 {[%clk
0:03:03.6]} 7. e5 {[%clk 0:03:06.6]} 7... Nd5 {[%clk 0:03:04.1]} 8. Ne4 {[%clk
0:03:08.1]} 8... Ba6 {[%clk 0:03:01.2]} 9. Bxa6 {[%clk 0:03:05.7]} 9... Qa5+
{[%clk 0:03:01.8]} 10. Bd2 {[%clk 0:03:06.8]} 10... Qxa6 {[%clk 0:03:03.7]} 11.
b3 {[%clk 0:03:08]} 11... f5 {[%clk 0:02:38.6]} 12. exf6 {[%clk 0:03:06.7]}
12... Nxf6 {[%clk 0:02:37.8]} 13. Nxf6+ {[%clk 0:03:07.8]} 13... gxf6 {[%clk
0:02:39.5]} 14. Qh5+ {[%clk 0:03:09.1]} 14... Kd8 {[%clk 0:02:39.5]} 15. c4
{[%clk 0:03:00.4]} 15... Be7 {[%clk 0:02:24]} 16. O-O {[%clk 0:02:58.3]} 16...
Kc7 {[%clk 0:02:21.5]} 17. Rfd1 {[%clk 0:02:57.2]} 17... c5 {[%clk 0:02:03.9]}
18. Bf4+ {[%clk 0:02:54.4]} 18... e5 {[%clk 0:02:01.3]} 19. Be3 {[%clk
0:02:55.3]} 19... Qc6 {[%clk 0:01:58.5]} 20. Rd5 {[%clk 0:02:55.7]} 20... Raf8
{[%clk 0:01:53.1]} 21. Rad1 {[%clk 0:02:55.4]} 21... d6 {[%clk 0:01:53.5]} 22.
Qf5 {[%clk 0:02:51.1]} 22... Qd7 {[%clk 0:01:19.4]} 23. Qxd7+ {[%clk 0:02:51]}
23... Kxd7 {[%clk 0:01:20.8]} 24. Bxc5 {[%clk 0:02:51.8]} 24... Ke6 {[%clk
0:01:14.2]} 25. Bxd6 {[%clk 0:02:52.3]} 1-0

[Event "*** Titled Tuesday 3|2 Blitz"]
[Site "Chess.com"]
[Date "2016.07.05"]
[Round "1"]
[White "BillieKimbah"]
[Black "aripov96"]
[Result "1/2-1/2"]
[WhiteElo "2513"]
[BlackElo "2247"]
[TimeControl "180+2"]
[EndTime "11:04:45 PDT"]
[Termination "Game drawn by agreement"]

1. d4 {[%clk 0:02:53.1]} 1... d5 {[%clk 0:03:00.4]} 2. c4 {[%clk 0:02:53.8]}
2... c6 {[%clk 0:03:01.9]} 3. Nf3 {[%clk 0:02:52.3]} 3... Nf6 {[%clk 0:03:01.5]}
4. Nbd2 {[%clk 0:02:50.6]} 4... Bf5 {[%clk 0:02:59.4]} 5. Nh4 {[%clk 0:02:51]}
5... Bg6 {[%clk 0:02:59.9]} 6. Nxg6 {[%clk 0:02:51.1]} 6... hxg6 {[%clk
0:03:01.8]} 7. g3 {[%clk 0:02:51.8]} 7... e6 {[%clk 0:03:01.1]} 8. Bg2 {[%clk
0:02:52.7]} 8... Nbd7 {[%clk 0:03:02.6]} 9. O-O {[%clk 0:02:53.7]} 9... Bd6
{[%clk 0:03:02.4]} 10. b3 {[%clk 0:02:52.6]} 10... Qe7 {[%clk 0:02:55.9]} 11.
Bb2 {[%clk 0:02:50.8]} 11... Ba3 {[%clk 0:02:51.7]} 12. Bxa3 {[%clk 0:02:50.9]}
12... Qxa3 {[%clk 0:02:53.6]} 13. c5 {[%clk 0:02:52.4]} 13... Qa5 {[%clk
0:02:51.8]} 14. Qc2 {[%clk 0:02:52.2]} 14... O-O {[%clk 0:02:46.4]} 15. Nf3
{[%clk 0:02:52.1]} 15... Rac8 {[%clk 0:02:43.2]} 16. Rab1 {[%clk 0:02:52.5]}
16... b5 {[%clk 0:02:44.3]} 17. b4 {[%clk 0:02:49.5]} 17... Qc7 {[%clk
0:02:44.1]} 18. a4 {[%clk 0:02:47.8]} 18... a6 {[%clk 0:02:44.1]} 19. Ra1 {[%clk
0:02:46.2]} 19... e5 {[%clk 0:02:43.9]} 20. e3 {[%clk 0:02:47]} 20... exd4
{[%clk 0:02:42.2]} 21. Nxd4 {[%clk 0:02:46.1]} 21... Ne5 {[%clk 0:02:39.9]} 22.
axb5 {[%clk 0:02:46.6]} 22... axb5 {[%clk 0:02:40.6]} 23. Ra6 {[%clk 0:02:48]}
23... Qd7 {[%clk 0:02:36.3]} 24. Rfa1 {[%clk 0:02:47.7]} 24... Nc4 {[%clk
0:02:36]} 25. Ra7 {[%clk 0:02:41.2]} 25... Rc7 {[%clk 0:02:36.9]} 26. Rxc7
{[%clk 0:02:42.1]} 26... Qxc7 {[%clk 0:02:38.5]} 27. Ra6 {[%clk 0:02:43]} 27...
Ne5 {[%clk 0:02:28.8]} 28. h3 {[%clk 0:02:42]} 28... Qb7 {[%clk 0:02:22.8]} 29.
Qa2 {[%clk 0:02:41.7]} 29... Rc8 {[%clk 0:02:22.5]} 30. Ra7 {[%clk 0:02:33.8]}
30... Qb8 {[%clk 0:02:23.3]} 31. Qa6 {[%clk 0:02:35.2]} 31... Ne4 {[%clk
0:02:14.2]} 32. f4 {[%clk 0:02:23.5]} 32... Nc4 {[%clk 0:02:10.4]} 33. Nxc6
{[%clk 0:02:24.2]} 33... Rxc6 {[%clk 0:02:09.7]} 34. Qxc6 {[%clk 0:02:11.7]}
34... Qxa7 {[%clk 0:02:09.8]} 35. Qxd5 {[%clk 0:02:12.5]} 1/2-1/2

[Event "*** Titled Tuesday 3|2 Blitz"]
[Site "Chess.com"]
[Date "2016.07.05"]
[Round "1"]
[White "Grootneus"]
[Black "Iball95"]
[Result "0-1"]
[WhiteElo "2060"]
[BlackElo "2433"]
[TimeControl "180+2"]
[EndTime "11:05:12 PDT"]
[Termination "Iball95 won by checkmate"]

1. e4 {[%clk 0:03:00.2]} 1... c5 {[%clk 0:02:55.5]} 2. c3 {[%clk 0:02:57.8]}
2... g6 {[%clk 0:02:52.6]} 3. Nf3 {[%clk 0:02:56.8]} 3... Bg7 {[%clk 0:02:53.2]}
4. d4 {[%clk 0:02:57.8]} 4... cxd4 {[%clk 0:02:55.1]} 5. cxd4 {[%clk 0:02:56.7]}
5... d5 {[%clk 0:02:56.1]} 6. e5 {[%clk 0:02:57.9]} 6... Nc6 {[%clk 0:02:56.6]}
7. Bb5 {[%clk 0:02:58.6]} 7... Nh6 {[%clk 0:02:53.1]} 8. O-O {[%clk 0:02:58.5]}
8... O-O {[%clk 0:02:53.6]} 9. Bxc6 {[%clk 0:03:00.1]} 9... bxc6 {[%clk
0:02:54.5]} 10. Nc3 {[%clk 0:03:00.2]} 10... Bg4 {[%clk 0:02:54.4]} 11. Bg5
{[%clk 0:02:59.7]} 11... Nf5 {[%clk 0:02:53.8]} 12. Be3 {[%clk 0:02:55.2]} 12...
Qa5 {[%clk 0:02:48.6]} 13. h3 {[%clk 0:02:53]} 13... Bxf3 {[%clk 0:02:48.9]} 14.
Qxf3 {[%clk 0:02:54.9]} 14... Rab8 {[%clk 0:02:48.8]} 15. Qe2 {[%clk 0:02:50]}
15... Qb4 {[%clk 0:02:48.9]} 16. Rfd1 {[%clk 0:02:31.6]} 16... Qxb2 {[%clk
0:02:47.6]} 17. Qxb2 {[%clk 0:02:33.5]} 17... Rxb2 {[%clk 0:02:48.9]} 18. Na4
{[%clk 0:02:34.8]} 18... Rfb8 {[%clk 0:02:27.7]} 19. Nxb2 {[%clk 0:02:34]} 19...
Rxb2 {[%clk 0:02:26.4]} 20. Rac1 {[%clk 0:02:24.2]} 20... Nxe3 {[%clk
0:02:23.1]} 21. fxe3 {[%clk 0:02:25]} 21... Bh6 {[%clk 0:02:23.9]} 22. Rd3
{[%clk 0:02:26.6]} 22... Rxa2 {[%clk 0:02:18.7]} 23. Rxc6 {[%clk 0:02:26.8]}
23... Re2 {[%clk 0:02:17.4]} 24. Rcc3 {[%clk 0:02:08.9]} 24... Bg5 {[%clk
0:02:11.7]} 25. Kf1 {[%clk 0:02:04.2]} 25... Rb2 {[%clk 0:02:11.3]} 26. Rb3
{[%clk 0:02:02]} 26... Rc2 {[%clk 0:02:11.7]} 27. Rb7 {[%clk 0:01:55.4]} 27...
Bh4 {[%clk 0:02:10.3]} 28. Rxa7 {[%clk 0:01:48.1]} 28... Rf2+ {[%clk 0:02:00.7]}
29. Kg1 {[%clk 0:01:49]} 29... Re2 {[%clk 0:02:01.8]} 30. Rd7 {[%clk 0:01:38.5]}
30... Bg3 {[%clk 0:01:59]} 31. Kf1 {[%clk 0:01:30.2]} 31... Re1# {[%clk
0:01:58.6]} 0-1

[Event "*** Titled Tuesday 3|2 Blitz"]
[Site "Chess.com"]
[Date "2016.07.05"]
[Round "1"]
[White "OparinGrigoriy"]
[Black "simplerXiao"]
[Result "1-0"]
[WhiteElo "2633"]
[BlackElo "2332"]
[TimeControl "180+2"]
[EndTime "11:05:31 PDT"]
[Termination "OparinGrigoriy won by checkmate"]

1. Nf3 {[%clk 0:02:59]} 1... d5 {[%clk 0:02:59.8]} 2. g3 {[%clk 0:02:59.6]} 2...
Nc6 {[%clk 0:03:00.8]} 3. d4 {[%clk 0:02:58.5]} 3... Bg4 {[%clk 0:03:01.7]} 4.
Bg2 {[%clk 0:02:58.1]} 4... Qd7 {[%clk 0:03:02.9]} 5. h3 {[%clk 0:02:58.9]} 5...
Bxf3 {[%clk 0:03:02]} 6. Bxf3 {[%clk 0:03:00.8]} 6... O-O-O {[%clk 0:03:02.8]}
7. Bg2 {[%clk 0:02:59.6]} 7... e5 {[%clk 0:03:03.3]} 8. dxe5 {[%clk 0:02:59.7]}
8... Nxe5 {[%clk 0:03:04.5]} 9. c3 {[%clk 0:03:01.2]} 9... Bc5 {[%clk
0:03:04.2]} 10. Nd2 {[%clk 0:03:01.8]} 10... Nf6 {[%clk 0:03:02.7]} 11. Nb3
{[%clk 0:03:01.6]} 11... Bd6 {[%clk 0:03:02]} 12. a4 {[%clk 0:02:58.7]} 12...
Rhe8 {[%clk 0:03:00.6]} 13. a5 {[%clk 0:02:58.4]} 13... a6 {[%clk 0:03:01]} 14.
Nd4 {[%clk 0:02:55.2]} 14... Bc5 {[%clk 0:02:57.4]} 15. Bg5 {[%clk 0:02:49]}
15... h6 {[%clk 0:02:55.5]} 16. Bxf6 {[%clk 0:02:49.8]} 16... gxf6 {[%clk
0:02:56.9]} 17. e3 {[%clk 0:02:44.3]} 17... Nc4 {[%clk 0:02:52.7]} 18. Qc2
{[%clk 0:02:39]} 18... Bd6 {[%clk 0:02:47.6]} 19. O-O {[%clk 0:02:24.9]} 19...
c6 {[%clk 0:02:33.7]} 20. b3 {[%clk 0:02:21.6]} 20... Ne5 {[%clk 0:02:34.4]} 21.
Qf5 {[%clk 0:02:22.6]} 21... Rg8 {[%clk 0:02:32.7]} 22. Qxd7+ {[%clk 0:02:19.2]}
22... Kxd7 {[%clk 0:02:29.7]} 23. h4 {[%clk 0:02:20.5]} 23... h5 {[%clk
0:02:23.8]} 24. Nf5 {[%clk 0:02:17.8]} 24... Bc7 {[%clk 0:02:24.5]} 25. Rfd1
{[%clk 0:02:16.9]} 25... Ke6 {[%clk 0:02:23.6]} 26. Nd4+ {[%clk 0:02:13]} 26...
Ke7 {[%clk 0:02:24.3]} 27. Kf1 {[%clk 0:02:03.3]} 27... Ng4 {[%clk 0:02:18.4]}
28. Nf5+ {[%clk 0:02:02.1]} 28... Ke6 {[%clk 0:02:19.1]} 29. Nd4+ {[%clk
0:02:03.8]} 29... Ke7 {[%clk 0:02:20.4]} 30. e4 {[%clk 0:02:05.5]} 30... dxe4
{[%clk 0:02:17.6]} 31. Bxe4 {[%clk 0:02:07.4]} 31... Be5 {[%clk 0:02:18.8]} 32.
Nf5+ {[%clk 0:01:43.7]} 32... Ke6 {[%clk 0:02:19.6]} 33. Ng7+ {[%clk 0:01:44.6]}
33... Ke7 {[%clk 0:02:20.8]} 34. Nf5+ {[%clk 0:01:45]} 34... Ke6 {[%clk
0:02:22]} 35. f3 {[%clk 0:01:33.2]} 35... Bxc3 {[%clk 0:02:01.9]} 36. Rac1
{[%clk 0:01:21.9]} 36... Rxd1+ {[%clk 0:01:59.4]} 37. Rxd1 {[%clk 0:01:22.8]}
37... Ne5 {[%clk 0:02:01.1]} 38. Rd6# {[%clk 0:01:23.8]} 1-0

[Event "*** Titled Tuesday 3|2 Blitz"]
[Site "Chess.com"]
[Date "2016.07.05"]
[Round "1"]
[White "Fawolizzo"]
[Black "tigra"]
[Result "0-1"]
[WhiteElo "2047"]
[BlackElo "2432"]
[TimeControl "180+2"]
[EndTime "11:05:31 PDT"]
[Termination "tigra won on time"]

1. d4 {[%clk 0:02:48.9]} 1... Nf6 {[%clk 0:03:00.1]} 2. Nf3 {[%clk 0:02:50.1]}
2... g6 {[%clk 0:03:01.8]} 3. e3 {[%clk 0:02:50.9]} 3... Bg7 {[%clk 0:03:03.4]}
4. c4 {[%clk 0:02:51.9]} 4... O-O {[%clk 0:03:05.3]} 5. Be2 {[%clk 0:02:52.9]}
5... d6 {[%clk 0:03:06.8]} 6. O-O {[%clk 0:02:53.2]} 6... Nc6 {[%clk 0:03:08]}
7. Nc3 {[%clk 0:02:51.6]} 7... e5 {[%clk 0:03:08.8]} 8. d5 {[%clk 0:02:47.6]}
8... Ne7 {[%clk 0:03:09.1]} 9. e4 {[%clk 0:02:46.3]} 9... Nh5 {[%clk 0:03:04.8]}
10. Ne1 {[%clk 0:02:22.9]} 10... Nf4 {[%clk 0:03:04.7]} 11. Bf3 {[%clk
0:02:16.3]} 11... f5 {[%clk 0:03:05.3]} 12. Bxf4 {[%clk 0:02:04.3]} 12... exf4
{[%clk 0:02:58.5]} 13. Nd3 {[%clk 0:02:03.9]} 13... fxe4 {[%clk 0:02:55.6]} 14.
Nxe4 {[%clk 0:01:53.5]} 14... Nf5 {[%clk 0:02:54]} 15. Nxf4 {[%clk 0:01:30]}
15... Nd4 {[%clk 0:02:50.6]} 16. Ne6 {[%clk 0:01:26]} 16... Bxe6 {[%clk
0:02:49.6]} 17. dxe6 {[%clk 0:01:25.7]} 17... Nxf3+ {[%clk 0:02:49.7]} 18. gxf3
{[%clk 0:01:25.7]} 18... Be5 {[%clk 0:02:44.1]} 19. Kh1 {[%clk 0:00:50.6]} 19...
Qh4 {[%clk 0:02:41.5]} 20. Ng3 {[%clk 0:00:17.3]} 20... Qxc4 {[%clk 0:02:39.5]}
0-1

[Event "*** Titled Tuesday 3|2 Blitz"]
[Site "Chess.com"]
[Date "2016.07.05"]
[Round "1"]
[White "FCChelsea14"]
[Black "DiamondCrusher22"]
[Result "1-0"]
[WhiteElo "2417"]
[BlackElo "1846"]
[TimeControl "180+2"]
[EndTime "11:05:55 PDT"]
[Termination "FCChelsea14 won by resignation"]

1. d4 {[%clk 0:03:01.9]} 1... d5 {[%clk 0:02:59.2]} 2. Nf3 {[%clk 0:03:02.9]}
2... Nf6 {[%clk 0:02:58.6]} 3. c4 {[%clk 0:03:03.7]} 3... c6 {[%clk 0:02:59.4]}
4. Qb3 {[%clk 0:03:04.2]} 4... Qb6 {[%clk 0:02:52.5]} 5. g3 {[%clk 0:03:04.2]}
5... Bf5 {[%clk 0:02:44.7]} 6. Nc3 {[%clk 0:03:00.6]} 6... Nbd7 {[%clk
0:02:27.8]} 7. c5 {[%clk 0:03:01.5]} 7... Qxb3 {[%clk 0:02:12.3]} 8. axb3 {[%clk
0:03:01.8]} 8... h6 {[%clk 0:02:08.9]} 9. b4 {[%clk 0:03:02.4]} 9... a6 {[%clk
0:02:06.6]} 10. b5 {[%clk 0:03:03.3]} 10... e6 {[%clk 0:01:58.9]} 11. Bf4 {[%clk
0:03:00.8]} 11... g5 {[%clk 0:01:50.6]} 12. Bc7 {[%clk 0:03:01.1]} 12... Ne4
{[%clk 0:01:35.7]} 13. bxa6 {[%clk 0:02:54.4]} 13... bxa6 {[%clk 0:01:28]} 14.
Nd2 {[%clk 0:02:53.4]} 14... Ra7 {[%clk 0:01:13.6]} 15. Ba5 {[%clk 0:02:47.6]}
15... Be7 {[%clk 0:01:10.3]} 16. Ndxe4 {[%clk 0:02:47.6]} 16... dxe4 {[%clk
0:01:09.8]} 17. e3 {[%clk 0:02:48.6]} 17... Nb8 {[%clk 0:01:09.6]} 18. Bb6
{[%clk 0:02:48.9]} 18... Ra8 {[%clk 0:01:09.5]} 19. b4 {[%clk 0:02:49.9]} 19...
Kd7 {[%clk 0:01:08.1]} 20. b5 {[%clk 0:02:50.5]} 20... cxb5 {[%clk 0:01:07.6]}
21. Bxb5+ {[%clk 0:02:51.3]} 21... Kc8 {[%clk 0:01:08.5]} 22. Kd2 {[%clk
0:02:50.9]} 22... Bd8 {[%clk 0:01:07.9]} 23. Bxd8 {[%clk 0:02:47.1]} 23... Rxd8
{[%clk 0:01:07.7]} 24. Rhb1 {[%clk 0:02:47.3]} 24... e5 {[%clk 0:01:07.5]} 25.
d5 {[%clk 0:02:46.8]} 25... Be6 {[%clk 0:01:05.7]} 26. Bc4 {[%clk 0:02:46.5]}
26... Ra7 {[%clk 0:01:00.2]} 27. Ke1 {[%clk 0:02:46.9]} 27... Bf5 {[%clk
0:00:57]} 28. c6 {[%clk 0:02:48.1]} 28... Ra8 {[%clk 0:00:32.7]} 29. Na4 {[%clk
0:02:44.9]} 29... Kc7 {[%clk 0:00:30.3]} 30. Rb7+ {[%clk 0:02:42.7]} 30... Kd6
{[%clk 0:00:30.7]} 31. Nb6 {[%clk 0:02:43.9]} 31... Nxc6 {[%clk 0:00:18.9]} 32.
Nxa8 {[%clk 0:02:40.4]} 32... Bc8 {[%clk 0:00:12.7]} 33. dxc6 {[%clk 0:02:39.6]}
33... Bxb7 {[%clk 0:00:13.6]} 34. cxb7 {[%clk 0:02:40.8]} 34... Rb8 {[%clk
0:00:14.8]} 35. Bxa6 {[%clk 0:02:39.4]} 1-0

[Event "*** Titled Tuesday 3|2 Blitz"]
[Site "Chess.com"]
[Date "2016.07.05"]
[Round "1"]
[White "Saitama_Hero"]
[Black "amaidel"]
[Result "0-1"]
[WhiteElo "2100"]
[BlackElo "2448"]
[TimeControl "180+2"]
[EndTime "11:05:56 PDT"]
[Termination "amaidel won by resignation"]

1. d4 {[%clk 0:03:01.9]} 1... d5 {[%clk 0:02:59.9]} 2. c4 {[%clk 0:03:03.3]}
2... c6 {[%clk 0:03:01.4]} 3. cxd5 {[%clk 0:03:04]} 3... cxd5 {[%clk 0:03:01.8]}
4. Nc3 {[%clk 0:03:05.6]} 4... Nf6 {[%clk 0:03:02.3]} 5. f3 {[%clk 0:03:07]}
5... Nc6 {[%clk 0:02:59.6]} 6. e4 {[%clk 0:03:08.1]} 6... e6 {[%clk 0:03:00.3]}
7. e5 {[%clk 0:03:08.1]} 7... Ng8 {[%clk 0:03:01]} 8. f4 {[%clk 0:03:09.4]} 8...
Nh6 {[%clk 0:02:59.9]} 9. Nf3 {[%clk 0:03:10.5]} 9... Nf5 {[%clk 0:02:56.8]} 10.
g4 {[%clk 0:02:56.3]} 10... Nh4 {[%clk 0:02:56.9]} 11. Be3 {[%clk 0:02:46.6]}
11... Nxf3+ {[%clk 0:02:51.4]} 12. Qxf3 {[%clk 0:02:45.4]} 12... Qh4+ {[%clk
0:02:49.3]} 13. Bf2 {[%clk 0:02:42.4]} 13... Qd8 {[%clk 0:02:35.7]} 14. Bd3
{[%clk 0:02:42.1]} 14... Qb6 {[%clk 0:02:35.4]} 15. O-O {[%clk 0:02:15.2]} 15...
Bd7 {[%clk 0:01:56.9]} 16. Na4 {[%clk 0:01:42.8]} 16... Qb4 {[%clk 0:01:54.4]}
17. Nc5 {[%clk 0:01:33.4]} 17... Nxd4 {[%clk 0:01:53.1]} 18. Qd1 {[%clk
0:01:07.9]} 18... Bxc5 {[%clk 0:01:51.8]} 19. a3 {[%clk 0:01:09.1]} 19... Qxb2
{[%clk 0:01:48.8]} 20. Rb1 {[%clk 0:01:08.2]} 20... Qxa3 {[%clk 0:01:49.3]} 21.
Rxb7 {[%clk 0:01:09.8]} 21... Ba4 {[%clk 0:01:43.7]} 22. Qb1 {[%clk 0:01:04.4]}
22... O-O {[%clk 0:01:35]} 23. Bxh7+ {[%clk 0:01:03.9]} 23... Kh8 {[%clk
0:01:35.7]} 24. Kh1 {[%clk 0:00:47.2]} 24... Qf3+ {[%clk 0:01:34.2]} 25. Kg1
{[%clk 0:00:47.3]} 25... Qh3 {[%clk 0:01:33.5]} 0-1

[Event "*** Titled Tuesday 3|2 Blitz"]
[Site "Chess.com"]
[Date "2016.07.05"]
[Round "1"]
[White "rithwik2002"]
[Black "Christov91"]
[Result "0-1"]
[WhiteElo "1880"]
[BlackElo "2410"]
[TimeControl "180+2"]
[EndTime "11:06:08 PDT"]
[Termination "Christov91 won by resignation"]

1. d4 {[%clk 0:02:57.5]} 1... d5 {[%clk 0:03:00.1]} 2. Bf4 {[%clk 0:02:58.3]}
2... Nf6 {[%clk 0:03:00.6]} 3. e3 {[%clk 0:02:59.4]} 3... Bf5 {[%clk 0:03:01]}
4. Bd3 {[%clk 0:02:58.5]} 4... Bxd3 {[%clk 0:02:51.4]} 5. Qxd3 {[%clk
0:02:59.3]} 5... c6 {[%clk 0:02:53.3]} 6. Nf3 {[%clk 0:02:59.4]} 6... e6 {[%clk
0:02:41.6]} 7. c4 {[%clk 0:02:55.4]} 7... Qb6 {[%clk 0:02:41.8]} 8. b3 {[%clk
0:02:43]} 8... Bb4+ {[%clk 0:02:38.8]} 9. Nbd2 {[%clk 0:02:43.8]} 9... Nbd7
{[%clk 0:02:34]} 10. O-O {[%clk 0:02:43.6]} 10... Be7 {[%clk 0:02:34]} 11. c5
{[%clk 0:02:42.2]} 11... Qd8 {[%clk 0:02:33.7]} 12. b4 {[%clk 0:02:42.7]} 12...
O-O {[%clk 0:02:32.2]} 13. h3 {[%clk 0:02:43.3]} 13... a5 {[%clk 0:02:26.9]} 14.
a3 {[%clk 0:02:43]} 14... b6 {[%clk 0:02:27.3]} 15. b5 {[%clk 0:02:34]} 15...
Qc8 {[%clk 0:02:27.7]} 16. bxc6 {[%clk 0:02:32.1]} 16... Qxc6 {[%clk 0:02:28.2]}
17. cxb6 {[%clk 0:02:31.8]} 17... Qxb6 {[%clk 0:02:25.7]} 18. Rab1 {[%clk
0:02:30.1]} 18... Qa6 {[%clk 0:02:26.2]} 19. Qxa6 {[%clk 0:02:27.9]} 19... Rxa6
{[%clk 0:02:28.1]} 20. a4 {[%clk 0:02:28.7]} 20... Bb4 {[%clk 0:02:28.5]} 21.
Rfc1 {[%clk 0:02:27.5]} 21... Nb6 {[%clk 0:02:15.2]} 22. Rc6 {[%clk 0:02:23.8]}
22... Rfa8 {[%clk 0:02:15.5]} 23. Ra1 {[%clk 0:01:47.5]} 23... Nc4 {[%clk
0:02:09.4]} 24. Rxa6 {[%clk 0:01:45.5]} 24... Rxa6 {[%clk 0:02:11.3]} 25. Nxc4
{[%clk 0:01:45.3]} 25... dxc4 {[%clk 0:02:13.2]} 26. Ne5 {[%clk 0:01:36.8]}
26... c3 {[%clk 0:02:13.2]} 27. Nd3 {[%clk 0:01:37]} 27... Rc6 {[%clk
0:02:08.4]} 28. f3 {[%clk 0:01:31.3]} 28... Nd5 {[%clk 0:02:08.5]} 29. Ne5
{[%clk 0:01:06.8]} 29... Rc8 {[%clk 0:02:08]} 30. Nd3 {[%clk 0:00:42.5]} 30...
c2 {[%clk 0:02:04.2]} 0-1

[Event "*** Titled Tuesday 3|2 Blitz"]
[Site "Chess.com"]
[Date "2016.07.05"]
[Round "1"]
[White "Astaneh"]
[Black "FearlessKing64"]
[Result "1-0"]
[WhiteElo "2471"]
[BlackElo "2112"]
[TimeControl "180+2"]
[EndTime "11:06:10 PDT"]
[Termination "Astaneh won by resignation"]

1. d4 {[%clk 0:02:40.1]} 1... Nf6 {[%clk 0:02:59.8]} 2. c4 {[%clk 0:02:39.9]}
2... g6 {[%clk 0:03:00.9]} 3. Nf3 {[%clk 0:02:40]} 3... Bg7 {[%clk 0:03:01.5]}
4. g3 {[%clk 0:02:41.1]} 4... O-O {[%clk 0:03:01.6]} 5. Bg2 {[%clk 0:02:41.9]}
5... d5 {[%clk 0:03:02.7]} 6. cxd5 {[%clk 0:02:41.4]} 6... Nxd5 {[%clk
0:03:03.3]} 7. O-O {[%clk 0:02:43.3]} 7... c5 {[%clk 0:03:02.5]} 8. dxc5 {[%clk
0:02:41.3]} 8... Nb4 {[%clk 0:02:56.8]} 9. Nc3 {[%clk 0:02:28.3]} 9... N8a6
{[%clk 0:02:49.4]} 10. a3 {[%clk 0:02:13.5]} 10... Nc6 {[%clk 0:02:36.3]} 11.
Be3 {[%clk 0:02:10.9]} 11... Be6 {[%clk 0:02:03.1]} 12. Rc1 {[%clk 0:02:07.7]}
12... Rc8 {[%clk 0:01:57.4]} 13. b4 {[%clk 0:02:06.1]} 13... Nc7 {[%clk
0:01:30.9]} 14. Qc2 {[%clk 0:01:51.3]} 14... a5 {[%clk 0:01:19.8]} 15. Rfd1
{[%clk 0:01:39.2]} 15... Qe8 {[%clk 0:01:20.1]} 16. b5 {[%clk 0:01:32.9]} 16...
Nb8 {[%clk 0:00:59.4]} 17. a4 {[%clk 0:01:29.8]} 17... Rd8 {[%clk 0:00:54.9]}
18. Nd4 {[%clk 0:01:19.2]} 18... Bd5 {[%clk 0:00:38.8]} 19. b6 {[%clk
0:01:04.8]} 1-0

[Event "*** Titled Tuesday 3|2 Blitz"]
[Site "Chess.com"]
[Date "2016.07.05"]
[Round "1"]
[White "Krupko_Alexey"]
[Black "David_Klein"]
[Result "0-1"]
[WhiteElo "1998"]
[BlackElo "2419"]
[TimeControl "180+2"]
[EndTime "11:06:22 PDT"]
[Termination "David_Klein won on time"]

1. e4 {[%clk 0:03:01.4]} 1... c5 {[%clk 0:02:58.3]} 2. Nf3 {[%clk 0:03:02.2]}
2... e6 {[%clk 0:02:59.6]} 3. d3 {[%clk 0:03:03.1]} 3... Nc6 {[%clk 0:03:00.6]}
4. g3 {[%clk 0:03:04.1]} 4... d5 {[%clk 0:03:01.9]} 5. Qe2 {[%clk 0:03:04.3]}
5... Be7 {[%clk 0:03:01.6]} 6. Bg2 {[%clk 0:03:03.6]} 6... Nf6 {[%clk
0:03:02.9]} 7. e5 {[%clk 0:03:01]} 7... Nd7 {[%clk 0:03:03.7]} 8. O-O {[%clk
0:03:02.4]} 8... g5 {[%clk 0:03:01.5]} 9. c4 {[%clk 0:02:42.7]} 9... g4 {[%clk
0:02:39.3]} 10. Ne1 {[%clk 0:01:53.2]} 10... Ndxe5 {[%clk 0:02:35.1]} 11. Nc3
{[%clk 0:01:46.9]} 11... d4 {[%clk 0:02:35.2]} 12. Bf4 {[%clk 0:01:33.8]} 12...
Nf3+ {[%clk 0:02:24.9]} 13. Nxf3 {[%clk 0:01:21.6]} 13... gxf3 {[%clk
0:02:26.8]} 14. Bxf3 {[%clk 0:01:19.5]} 14... dxc3 {[%clk 0:02:27.8]} 15. bxc3
{[%clk 0:01:21.3]} 15... Bf6 {[%clk 0:02:24]} 16. d4 {[%clk 0:01:17.9]} 16...
cxd4 {[%clk 0:02:23.8]} 17. Rad1 {[%clk 0:01:15.5]} 17... Qb6 {[%clk 0:02:18.5]}
18. Bd6 {[%clk 0:01:09.3]} 18... dxc3 {[%clk 0:02:14.3]} 19. c5 {[%clk
0:01:04.8]} 19... Qb2 {[%clk 0:02:09.1]} 20. Qe4 {[%clk 0:01:00]} 20... Bd7
{[%clk 0:01:58.3]} 21. Bh5 {[%clk 0:00:53.2]} 21... c2 {[%clk 0:01:50.8]} 22.
Rc1 {[%clk 0:00:52]} 22... Qd4 {[%clk 0:01:44.9]} 23. Qe2 {[%clk 0:00:48.2]}
23... Qd5 {[%clk 0:01:41]} 24. Bf3 {[%clk 0:00:25.8]} 24... Nd4 {[%clk
0:01:40.7]} 0-1